lending/lending_fUSD_20240810
["ID","MTS","AMOUNT","RATE_DAILY","PERIOD"]
[334590750,1723287047712,-296.3,0.00012269,2]
[334590751,1723287047722,-200.0,0.00012273,2]
[334590752,1723287047731,-150.0,0.00012275,2]
[334590753,1723287047740,-150.0,0.00012276,2]
[334590754,1723287047748,-1500.0,0.00012277,2]
[334590755,1723287047759,-150.0,0.00012277,2]
[334590756,1723287047768,-1500.0,0.00012283,2]
[334590757,1723287047777,-150.0,0.00012284,2]
[334590758,1723287047786,-150.0,0.00012287,2]
[334590759,1723287047796,-150.0,0.00012288,2]
[334590760,1723287047805,-150.0,0.00012289,2]
[334590761,1723287047815,-300.54549037,0.00012291,2]
[334590762,1723287047824,-150.0,0.00012293,2]
[334590763,1723287047834,-150.0,0.00012293,2]
[334590764,1723287047843,-157.39258196,0.00012294,2]
[334590765,1723287047852,-150.0,0.00012296,2]
[334590766,1723287047861,-2000.0,0.000123,2]
[334590767,1723287047870,-1968.70521672,0.000123,2]
[334590768,1723287047880,-151.0,0.000123,2]
[334590769,1723287047889,-210.344867,0.000123,2]
[334590770,1723287047898,-210.344867,0.000123,2]
[334590771,1723287047907,-151.0,0.000123,2]
[334590772,1723287047917,-151.0,0.000123,2]
[334590773,1723287047926,-151.0,0.000123,2]
[334590774,1723287047936,-151.0,0.000123,2]
[334590775,1723287047945,-151.0,0.000123,2]
[334590776,1723287047955,-539.840086,0.000123,2]
[334590777,1723287047964,-151.0,0.000123,2]
[334590778,1723287047974,-151.0,0.000123,2]
[334590779,1723287047983,-151.255628,0.000123,2]
[334590780,1723287047992,-151.0,0.000123,2]
[334590781,1723287048001,-158.732719,0.000123,2]
[334590782,1723287048011,-174.069152,0.000123,2]
[334590783,1723287048021,-201.256533,0.000123,2]
[334590784,1723287048030,-1323.982044,0.000123,2]
[334590785,1723287048039,-158.732719,0.000123,2]
[334590786,1723287048049,-174.069152,0.000123,2]
[334590787,1723287048059,-201.256533,0.000123,2]
[334590788,1723287048068,-1323.982044,0.000123,2]
[334590789,1723287048077,-151.0,0.000123,2]
[334590790,1723287048086,-285.037595,0.000123,2]
[334590791,1723287048095,-151.0,0.000123,2]
[334590792,1723287048104,-151.672796,0.000123,2]
[334590793,1723287048113,-151.0,0.000123,2]
[334590794,1723287048123,-198.944865,0.000123,2]
[334590795,1723287048132,-198.944865,0.000123,2]
[334590796,1723287048141,-342.480342,0.000123,2]
[334590797,1723287048150,-342.480342,0.000123,2]
[334590798,1723287048159,-157.537129,0.000123,2]
[334590799,1723287048168,-157.537129,0.000123,2]
[334590800,1723287048177,-151.0,0.000123,2]
[334590801,1723287048187,-151.0,0.000123,2]
[334590802,1723287048196,-150.0,0.00012301,2]
[334590803,1723287048206,-150.0,0.00012302,2]
[334590804,1723287048215,-150.0,0.00012309,2]
[334590805,1723287048224,-150.0,0.00012312,2]
[334590806,1723287048233,-150.0,0.00012314,2]
[334590807,1723287048243,-1500.0,0.00012317,2]
[334590808,1723287048252,-1500.0,0.00012317,2]
[334590809,1723287048262,-150.0,0.00012321,2]
[334590810,1723287048271,-1500.0,0.00012324,2]
[334590811,1723287048280,-150.0,0.00012324,2]
[334590812,1723287048290,-150.0,0.00012325,2]
[334590813,1723287048299,-1500.0,0.00012326,2]
[334590814,1723287048308,-150.0,0.00012333,2]
[334590815,1723287048317,-150.0,0.00012334,2]
[334590816,1723287048327,-150.0,0.00012336,2]
[334590817,1723287048336,-150.0,0.00012336,2]
[334590818,1723287048346,-150.0,0.00012339,2]
[334590819,1723287048355,-150.0,0.0001234,2]
[334590820,1723287048365,-150.0,0.0001234,2]
[334590821,1723287048383,-400.0,0.00012342,2]
[334590822,1723287048403,-400.0,0.00012342,2]
[334590823,1723287048423,-1500.0,0.00012345,2]
[334590824,1723287048443,-150.0,0.00012346,2]
[334590825,1723287048464,-150.0,0.00012349,2]
[334590826,1723287048485,-150.0,0.00012352,2]
[334590827,1723287048507,-150.0,0.00012353,2]
[334590828,1723287048541,-150.0,0.00012355,2]
[334590829,1723287048578,-1500.0,0.00012359,2]
[334590830,1723287048610,-150.0,0.00012359,2]
[334590831,1723287048633,-150.0,0.00012359,2]
[334590832,1723287048642,-159.87612,0.00012359,2]
[334590833,1723287048651,-159.87612,0.00012359,2]
[334590834,1723287048661,-569.455933,0.00012359,2]
[334590835,1723287048671,-569.455933,0.00012359,2]
[334590836,1723287048680,-539.846076,0.00012359,2]
[334590837,1723287048689,-177.706543,0.00012359,2]
[334590838,1723287048699,-539.846076,0.00012359,2]
[334590839,1723287048708,-151.0,0.00012359,2]
[334590840,1723287048717,-230.488098,0.00012359,2]
[334590841,1723287048726,-829.665441,0.00012359,2]
[334590842,1723287048734,-151.0,0.00012359,2]
[334590843,1723287048742,-155.0,0.0001236,2]
[334590844,1723287048751,-151.0,0.0001236,2]
[334590845,1723287048760,-151.0,0.0001236,2]
[334590846,1723287048769,-151.0,0.0001236,2]
[334590847,1723287048779,-453.247836,0.0001236,2]
[334590848,1723287048788,-453.247836,0.0001236,2]
[334590849,1723287048797,-329.551266,0.0001236,2]
[334590850,1723287048807,-329.551266,0.0001236,2]
[334590851,1723287048816,-151.0,0.0001236,2]
[334590852,1723287048825,-151.0,0.0001236,2]
[334590853,1723287048835,-228.365843,0.0001236,2]
[334590854,1723287048844,-207.124402,0.0001236,2]
[334590855,1723287048853,-151.0,0.0001236,2]
[334590856,1723287048862,-228.365843,0.0001236,2]
[334590857,1723287048871,-151.0,0.0001236,2]
[334590858,1723287048881,-349.612158,0.0001236,2]
[334590859,1723287048890,-151.0,0.0001236,2]
[334590860,1723287048899,-150.0,0.0001236,2]
[334590861,1723287048908,-349.612158,0.0001236,2]
[334590862,1723287048918,-200.526732,0.0001236,2]
[334590863,1723287048927,-200.526732,0.0001236,2]
[334590864,1723287048936,-922.277054,0.0001236,2]
[334590865,1723287048946,-922.277054,0.0001236,2]
[334590866,1723287048955,-417.333619,0.0001236,2]
[334590867,1723287048964,-417.333619,0.0001236,2]
[334590868,1723287048973,-1045.355205,0.0001236,2]
[334590869,1723287048982,-1045.355205,0.0001236,2]
[334590870,1723287048991,-151.0,0.0001236,2]
[334590871,1723287049001,-180.325739,0.0001236,2]
[334590872,1723287049011,-180.325739,0.0001236,2]
[334590873,1723287049020,-151.0,0.0001236,2]
[334590874,1723287049030,-151.0,0.0001236,2]
[334590875,1723287049039,-151.0,0.0001236,2]
[334590876,1723287049048,-398.309818,0.0001236,2]
[334590877,1723287049057,-398.309818,0.0001236,2]
[334590878,1723287049066,-151.0,0.0001236,2]
[334590879,1723287049075,-151.0,0.0001236,2]
[334590880,1723287049084,-553.127259,0.0001236,2]
[334590881,1723287049093,-151.0,0.0001236,2]
[334590882,1723287049103,-553.127259,0.0001236,2]
[334590883,1723287049112,-151.756701,0.0001236,2]
[334590884,1723287049121,-1066.31323,0.0001236,2]
[334590885,1723287049131,-1066.31323,0.0001236,2]
[334590886,1723287049141,-1238.80122,0.0001236,2]
[334590887,1723287049150,-151.0,0.0001236,2]
[334590888,1723287049159,-1238.80122,0.0001236,2]
[334590889,1723287049169,-235.445978,0.0001236,2]
[334590890,1723287049179,-235.445978,0.0001236,2]
[334590891,1723287049188,-170.932081,0.0001236,2]
[334590892,1723287049197,-170.932081,0.0001236,2]
[334590893,1723287049206,-151.0,0.0001236,2]
[334590894,1723287049215,-342.99674,0.0001236,2]
[334590895,1723287049224,-342.99674,0.0001236,2]
[334590896,1723287049234,-458.13805,0.0001236,2]
[334590897,1723287049243,-458.13805,0.0001236,2]
[334590898,1723287049252,-150.0,0.00012365,2]
[334590899,1723287049262,-150.0,0.00012367,2]
[334590900,1723287049271,-150.0,0.0001237,2]
[334590901,1723287049281,-151.6196241,0.00012373,2]
[334590902,1723287049290,-150.0,0.00012373,2]
[334590903,1723287049300,-150.0,0.00012373,2]
[334590904,1723287049309,-150.0,0.00012377,2]
[334590905,1723287049318,-150.0,0.00012378,2]
[334590906,1723287049327,-150.0,0.00012378,2]
[334590907,1723287049337,-150.0,0.0001238,2]
[334590908,1723287049346,-150.0,0.00012381,2]
[334590909,1723287049355,-150.0,0.00012381,2]
[334590910,1723287049364,-150.0,0.00012382,2]
[334590911,1723287049373,-150.0,0.00012382,2]
[334590912,1723287049383,-150.0,0.00012383,2]
[334590913,1723287049392,-1500.0,0.00012385,2]
[334590914,1723287049405,-1500.0,0.00012386,2]
[334590915,1723287049415,-1500.0,0.00012387,2]
[334590916,1723287049424,-150.0,0.00012388,2]
[334590917,1723287049434,-1500.0,0.00012389,2]
[334590918,1723287049443,-201.0,0.0001239,2]
[334590919,1723287049452,-201.0,0.0001239,2]
[334590920,1723287049461,-150.0,0.00012391,2]
[334590921,1723287049470,-2491.48012761,0.00012391,2]
[334590922,1723287049482,-155.0,0.00012391,2]
[334590923,1723287049492,-150.0,0.00012393,2]
[334590924,1723287049501,-2089705.50130967,0.00012394,2]
[334590925,1723287049511,-1500.0,0.00012394,2]
[334590926,1723287049618,-150.0,0.00012396,2]
[334590927,1723287049629,-150.0,0.00012397,2]
[334590928,1723287049638,-1381.7503524,0.00012397,2]
[334590929,1723287049647,-489.75014461,0.00012397,2]
[334590930,1723287049656,-150.0,0.00012406,2]
[334590931,1723287049666,-150.0,0.00012407,2]
[334590932,1723287049675,-150.0,0.00012408,2]
[334590933,1723287049684,-150.0,0.00012408,2]
[334590934,1723287049694,-150.0,0.0001241,2]
[334590935,1723287049704,-150.0,0.00012412,2]
[334590936,1723287049714,-150.0,0.00012418,2]
[334590937,1723287049723,-150.0,0.00012418,2]
[334590938,1723287049732,-150.0,0.0001242,2]
[334590939,1723287049742,-150.0,0.0001242,2]
[334590940,1723287049751,-150.0,0.00012423,2]
[334590941,1723287049762,-150.0,0.00012423,2]
[334590942,1723287049771,-151.0,0.00012424,2]
[334590943,1723287049781,-151.0,0.00012424,2]
[334590944,1723287049790,-151.0,0.00012424,2]
[334590945,1723287049799,-151.0,0.00012424,2]
[334590946,1723287049809,-151.0,0.00012424,2]
[334590947,1723287049818,-1500.0,0.00012427,2]
[334590948,1723287049827,-150.0,0.00012428,2]
[334590949,1723287049836,-150.0,0.00012432,2]
[334590950,1723287049846,-1500.0,0.00012433,2]
[334590951,1723287049855,-188.69565719,0.00012435,2]
[334590952,1723287049864,-150.0,0.0001244,2]
[334590953,1723287049873,-150.0,0.00012445,2]
[334590954,1723287049882,-151.0,0.00012453,2]
[334590955,1723287049891,-151.0,0.00012453,2]
[334590956,1723287049900,-151.0,0.00012453,2]
[334590957,1723287049909,-151.0,0.00012453,2]
[334590958,1723287049919,-150.0,0.00012453,2]
[334590959,1723287049929,-150.0,0.00012453,2]
[334590960,1723287049938,-150.0,0.00012455,2]
[334590961,1723287049947,-11712.76842897,0.00012456,2]
[334590962,1723287049956,-1500.0,0.0001246,2]
[334590963,1723287049965,-155.0,0.0001246,2]
[334590964,1723287049975,-150.0,0.00012466,2]
[334590965,1723287049984,-150.0,0.00012467,2]
[334590966,1723287049993,-150.0,0.00012467,2]
[334590967,1723287050002,-151.0,0.00012467,2]
[334590968,1723287050012,-151.0,0.00012467,2]
[334590969,1723287050022,-152.13063,0.00012467,2]
[334590970,1723287050031,-151.0,0.00012467,2]
[334590971,1723287050040,-1160.590552,0.00012467,2]
[334590972,1723287050048,-1160.590552,0.00012467,2]
[334590973,1723287050058,-5260.001754,0.00012467,2]
[334590974,1723287050067,-150.0,0.00012468,2]
[334590975,1723287050076,-150.0,0.00012468,2]
[334590976,1723287050085,-150.0,0.0001247,2]
[334590977,1723287050095,-1376.83454025,0.00012471,2]
[334590978,1723287050104,-150.0,0.00012471,2]
[334590979,1723287050113,-150.0,0.00012473,2]
[334590980,1723287050123,-150.0,0.00012473,2]
[334590981,1723287050132,-1500.0,0.00012474,2]
[334590982,1723287050141,-150.0,0.00012475,2]
[334590983,1723287050151,-150.0,0.00012476,2]
[334590984,1723287050160,-1500.0,0.00012477,2]
[334590985,1723287050169,-150.0,0.00012477,2]
[334590986,1723287050178,-150.0,0.00012477,2]
[334590987,1723287050187,-150.0,0.00012479,2]
[334590988,1723287050196,-150.0,0.0001248,2]
[334590989,1723287050206,-150.0,0.00012481,2]
[334590990,1723287050215,-150.0,0.00012483,2]
[334590991,1723287050224,-150.0,0.00012483,2]
[334590992,1723287050234,-150.0,0.00012483,2]
[334590993,1723287050243,-150.0,0.00012486,2]
[334590994,1723287050252,-150.0,0.00012489,2]
[334590995,1723287050262,-150.0,0.00012491,2]
[334590996,1723287050271,-150.0,0.00012493,2]
[334590997,1723287050281,-1500.0,0.00012495,2]
[334590998,1723287050290,-150.0,0.00012497,2]
[334590999,1723287050299,-150.0,0.00012498,2]
[334591000,1723287050308,-2000.0,0.000125,2]
[334591001,1723287050317,-522.0,0.000125,2]
[334591002,1723287050327,-150.0,0.000125,2]
[334591003,1723287050335,-150.0,0.00012501,2]
[334591004,1723287050345,-150.0,0.00012502,2]
[334591005,1723287050354,-150.0,0.00012502,2]
[334591006,1723287050363,-1500.0,0.00012506,2]
[334591007,1723287050373,-1500.0,0.00012507,2]
[334591008,1723287050382,-150.0,0.00012507,2]
[334591009,1723287050391,-171.46,0.00012509,2]
[334591010,1723287050404,-576.7354739,0.00012534,2]
[334591011,1723287050413,-3513.4000928,0.00012534,2]
[334591012,1723287050422,-151.0,0.00012535,2]
[334591013,1723287050432,-152.911068,0.00012535,2]
[334591014,1723287050442,-151.0,0.00012535,2]
[334591015,1723287050451,-152.911068,0.00012535,2]
[334591016,1723287050460,-151.0,0.00012535,2]
[334591017,1723287050469,-260.864908,0.00012535,2]
[334591018,1723287050480,-276.882583,0.00012535,2]
[334591019,1723287050489,-151.0,0.00012535,2]
[334591020,1723287050499,-151.0,0.00012535,2]
[334591021,1723287050508,-151.0,0.00012535,2]
[334591022,1723287050518,-354.269672,0.00012535,2]
[334591023,1723287050527,-354.269672,0.00012535,2]
[334591024,1723287050537,-272.8825,0.00012535,2]
[334591025,1723287050546,-210.344867,0.00012535,2]
[334591026,1723287050555,-210.344867,0.00012535,2]
[334591027,1723287050564,-151.0,0.00012535,2]
[334591028,1723287050573,-151.0,0.00012535,2]
[334591029,1723287050583,-151.0,0.00012535,2]
[334591030,1723287050592,-151.0,0.00012535,2]
[334591031,1723287050601,-151.0,0.00012535,2]
[334591032,1723287050610,-539.840086,0.00012535,2]
[334591033,1723287050619,-151.0,0.00012535,2]
[334591034,1723287050628,-151.0,0.00012535,2]
[334591035,1723287050638,-158.732719,0.00012535,2]
[334591036,1723287050647,-174.069152,0.00012535,2]
[334591037,1723287050656,-201.256533,0.00012535,2]
[334591038,1723287050665,-1323.982044,0.00012535,2]
[334591039,1723287050675,-158.732719,0.00012535,2]
[334591040,1723287050684,-174.069152,0.00012535,2]
[334591041,1723287050693,-201.256533,0.00012535,2]
[334591042,1723287050703,-1323.982044,0.00012535,2]
[334591043,1723287050712,-151.0,0.00012535,2]
[334591044,1723287050721,-151.0,0.00012535,2]
[334591045,1723287050730,-151.0,0.00012535,2]
[334591046,1723287050739,-198.944865,0.00012535,2]
[334591047,1723287050748,-198.944865,0.00012535,2]
[334591048,1723287050758,-342.480342,0.00012535,2]
[334591049,1723287050777,-342.480342,0.00012535,2]
[334591050,1723287050786,-157.537129,0.00012535,2]
[334591051,1723287050795,-157.537129,0.00012535,2]
[334591052,1723287050803,-151.0,0.00012535,2]
[334591053,1723287050813,-151.0,0.00012535,2]
[334591054,1723287050821,-416.7568044,0.00012535,2]
[334591055,1723287050830,-2676.2718866,0.00012535,2]
[334591056,1723287050839,-480.6128944,0.00012535,2]
[334591057,1723287050848,-151.0,0.00012539,2]
[334591058,1723287050857,-151.0,0.00012539,2]
[334591059,1723287050866,-151.0,0.00012539,2]
[334591060,1723287050875,-152.911068,0.00012539,2]
[334591061,1723287050885,-152.911068,0.00012539,2]
[334591062,1723287050894,-151.0,0.00012539,2]
[334591063,1723287050904,-151.0,0.00012539,2]
[334591064,1723287050914,-152.911068,0.00012539,2]
[334591065,1723287050923,-152.911068,0.00012539,2]
[334591066,1723287050933,-151.0,0.00012539,2]
[334591067,1723287050942,-151.0,0.00012539,2]
[334591068,1723287050952,-151.0,0.00012539,2]
[334591069,1723287050962,-264.178526,0.00012539,2]
[334591070,1723287050971,-151.0,0.00012539,2]
[334591071,1723287050981,-151.0,0.00012539,2]
[334591072,1723287050991,-151.0,0.00012539,2]
[334591073,1723287051000,-151.0,0.00012539,2]
[334591074,1723287051010,-151.0,0.00012539,2]
[334591075,1723287051019,-151.0,0.00012539,2]
[334591076,1723287051028,-151.0,0.00012539,2]
[334591077,1723287051037,-151.0,0.00012539,2]
[334591078,1723287051047,-354.269672,0.00012539,2]
[334591079,1723287051056,-354.269672,0.00012539,2]
[334591080,1723287051065,-354.269672,0.00012539,2]
[334591081,1723287051075,-354.269672,0.00012539,2]
[334591082,1723287051084,-151.0,0.00012539,2]
[334591083,1723287051093,-151.0,0.00012539,2]
[334591084,1723287051103,-151.0,0.00012539,2]
[334591085,1723287051112,-151.0,0.00012539,2]
[334591086,1723287051122,-151.0,0.00012539,2]
[334591087,1723287051131,-151.0,0.00012539,2]
[334591088,1723287051141,-151.0,0.00012539,2]
[334591089,1723287051150,-151.0,0.00012539,2]
[334591090,1723287051160,-453.247836,0.00012539,2]
[334591091,1723287051169,-453.247836,0.00012539,2]
[334591092,1723287051178,-151.0,0.00012539,2]
[334591093,1723287051188,-151.0,0.00012539,2]
[334591094,1723287051197,-151.0,0.00012539,2]
[334591095,1723287051207,-151.0,0.00012539,2]
[334591096,1723287051216,-453.247836,0.00012539,2]
[334591097,1723287051224,-151.0,0.00012539,2]
[334591098,1723287051234,-453.247836,0.00012539,2]
[334591099,1723287051243,-151.0,0.00012539,2]
[334591100,1723287051252,-172.767403,0.00012539,2]
[334591101,1723287051265,-329.551266,0.00012539,2]
[334591102,1723287051278,-329.551266,0.00012539,2]
[334591103,1723287051287,-151.0,0.00012539,2]
[334591104,1723287051297,-151.0,0.00012539,2]
[334591105,1723287051306,-329.551266,0.00012539,2]
[334591106,1723287051316,-329.551266,0.00012539,2]
[334591107,1723287051325,-210.344867,0.00012539,2]
[334591108,1723287051334,-210.344867,0.00012539,2]
[334591109,1723287051344,-151.0,0.00012539,2]
[334591110,1723287051353,-151.0,0.00012539,2]
[334591111,1723287051363,-204.870248,0.00012539,2]
[334591112,1723287051372,-151.0,0.00012539,2]
[334591113,1723287051475,-151.0,0.00012539,2]
[334591114,1723287051485,-539.840086,0.00012539,2]
[334591115,1723287051495,-539.840086,0.00012539,2]
[334591116,1723287051505,-151.0,0.00012539,2]
[334591117,1723287051516,-158.732719,0.00012539,2]
[334591118,1723287051525,-174.069152,0.00012539,2]
[334591119,1723287051534,-201.256533,0.00012539,2]
[334591120,1723287051544,-1323.982044,0.00012539,2]
[334591121,1723287051554,-158.732719,0.00012539,2]
[334591122,1723287051564,-174.069152,0.00012539,2]
[334591123,1723287051574,-201.256533,0.00012539,2]
[334591124,1723287051583,-1323.982044,0.00012539,2]
[334591125,1723287051592,-151.0,0.00012539,2]
[334591126,1723287051602,-151.0,0.00012539,2]
[334591127,1723287051612,-282.312013,0.00012539,2]
[334591128,1723287051621,-198.944865,0.00012539,2]
[334591129,1723287051631,-198.944865,0.00012539,2]
[334591130,1723287051640,-342.480342,0.00012539,2]
[334591131,1723287051650,-342.480342,0.00012539,2]
[334591132,1723287051660,-157.537129,0.00012539,2]
[334591133,1723287051669,-157.537129,0.00012539,2]
[334591134,1723287051679,-151.0,0.00012539,2]
[334591135,1723287051689,-151.0,0.00012539,2]
[334591136,1723287051698,-151.0,0.00012539,2]
[334591137,1723287051708,-151.0,0.00012539,2]
[334591138,1723287051718,-151.0,0.00012539,2]
[334591139,1723287051728,-151.0,0.00012539,2]
[334591140,1723287051737,-228.365843,0.00012539,2]
[334591141,1723287051746,-228.365843,0.00012539,2]
[334591142,1723287051756,-151.0,0.00012539,2]
[334591143,1723287051766,-151.0,0.00012539,2]
[334591144,1723287051776,-228.365843,0.00012539,2]
[334591145,1723287051786,-151.0,0.00012539,2]
[334591146,1723287051795,-228.365843,0.00012539,2]
[334591147,1723287051804,-151.0,0.00012539,2]
[334591148,1723287051814,-349.612158,0.00012539,2]
[334591149,1723287051824,-349.612158,0.00012539,2]
[334591150,1723287051834,-151.0,0.00012539,2]
[334591151,1723287051843,-151.0,0.00012539,2]
[334591152,1723287051853,-349.612158,0.00012539,2]
[334591153,1723287051863,-349.612158,0.00012539,2]
[334591154,1723287051873,-200.526732,0.00012539,2]
[334591155,1723287051882,-200.526732,0.00012539,2]
[334591156,1723287051891,-200.526732,0.00012539,2]
[334591157,1723287051901,-200.526732,0.00012539,2]
[334591158,1723287051910,-922.277054,0.00012539,2]
[334591159,1723287051920,-922.277054,0.00012539,2]
[334591160,1723287051929,-922.277054,0.00012539,2]
[334591161,1723287051939,-922.277054,0.00012539,2]
[334591162,1723287051948,-417.333619,0.00012539,2]
[334591163,1723287051958,-417.333619,0.00012539,2]
[334591164,1723287051967,-417.333619,0.00012539,2]
[334591165,1723287051976,-417.333619,0.00012539,2]
[334591166,1723287051986,-1045.355205,0.00012539,2]
[334591167,1723287051996,-1045.355205,0.00012539,2]
[334591168,1723287052005,-1045.355205,0.00012539,2]
[334591169,1723287052016,-1045.355205,0.00012539,2]
[334591170,1723287052026,-151.0,0.00012539,2]
[334591171,1723287052036,-151.0,0.00012539,2]
[334591172,1723287052046,-151.0,0.00012539,2]
[334591173,1723287052056,-197.743836,0.00012539,2]
[334591174,1723287052066,-180.325739,0.00012539,2]
[334591175,1723287052075,-180.325739,0.00012539,2]
[334591176,1723287052084,-180.325739,0.00012539,2]
[334591177,1723287052094,-180.325739,0.00012539,2]
[334591178,1723287052104,-151.0,0.00012539,2]
[334591179,1723287052113,-151.0,0.00012539,2]
[334591180,1723287052123,-198.4303,0.00012539,2]
[334591181,1723287052133,-151.0,0.00012539,2]
[334591182,1723287052142,-151.0,0.00012539,2]
[334591183,1723287052151,-398.309818,0.00012539,2]
[334591184,1723287052161,-398.309818,0.00012539,2]
[334591185,1723287052171,-398.309818,0.00012539,2]
[334591186,1723287052180,-398.309818,0.00012539,2]
[334591187,1723287052190,-151.0,0.00012539,2]
[334591188,1723287052200,-151.0,0.00012539,2]
[334591189,1723287052209,-159.87612,0.00012539,2]
[334591190,1723287052219,-159.87612,0.00012539,2]
[334591191,1723287052229,-159.87612,0.00012539,2]
[334591192,1723287052238,-159.87612,0.00012539,2]
[334591193,1723287052248,-569.455933,0.00012539,2]
[334591194,1723287052257,-569.455933,0.00012539,2]
[334591195,1723287052268,-569.455933,0.00012539,2]
[334591196,1723287052277,-569.455933,0.00012539,2]
[334591197,1723287052287,-539.846076,0.00012539,2]
[334591198,1723287052296,-539.846076,0.00012539,2]
[334591199,1723287052306,-539.846076,0.00012539,2]
[334591200,1723287052315,-539.846076,0.00012539,2]
[334591201,1723287052325,-151.0,0.00012539,2]
[334591202,1723287052334,-151.0,0.00012539,2]
[334591203,1723287052344,-829.665441,0.00012539,2]
[334591204,1723287052353,-829.665441,0.00012539,2]
[334591205,1723287052362,-829.665441,0.00012539,2]
[334591206,1723287052372,-829.665441,0.00012539,2]
[334591207,1723287052381,-151.0,0.00012539,2]
[334591208,1723287052391,-151.0,0.00012539,2]
[334591209,1723287052403,-151.0,0.00012539,2]
[334591210,1723287052413,-151.0,0.00012539,2]
[334591211,1723287052423,-553.127259,0.00012539,2]
[334591212,1723287052432,-553.127259,0.00012539,2]
[334591213,1723287052443,-188.061779,0.00012539,2]
[334591214,1723287052453,-553.127259,0.00012539,2]
[334591215,1723287052463,-553.127259,0.00012539,2]
[334591216,1723287052472,-1066.31323,0.00012539,2]
[334591217,1723287052483,-1066.31323,0.00012539,2]
[334591218,1723287052492,-1066.31323,0.00012539,2]
[334591219,1723287052502,-1066.31323,0.00012539,2]
[334591220,1723287052513,-1238.80122,0.00012539,2]
[334591221,1723287052527,-151.0,0.00012539,2]
[334591222,1723287052536,-1238.80122,0.00012539,2]
[334591223,1723287052546,-1238.80122,0.00012539,2]
[334591224,1723287052555,-1238.80122,0.00012539,2]
[334591225,1723287052565,-235.445978,0.00012539,2]
[334591226,1723287052574,-235.445978,0.00012539,2]
[334591227,1723287052585,-235.445978,0.00012539,2]
[334591228,1723287052595,-235.445978,0.00012539,2]
[334591229,1723287052604,-170.932081,0.00012539,2]
[334591230,1723287052614,-170.932081,0.00012539,2]
[334591231,1723287052623,-170.932081,0.00012539,2]
[334591232,1723287052633,-170.932081,0.00012539,2]
[334591233,1723287052643,-151.0,0.00012539,2]
[334591234,1723287052653,-151.0,0.00012539,2]
[334591235,1723287052662,-342.99674,0.00012539,2]
[334591236,1723287052672,-342.99674,0.00012539,2]
[334591237,1723287052682,-151.0,0.00012539,2]
[334591238,1723287052691,-151.0,0.00012539,2]
[334591239,1723287052700,-342.99674,0.00012539,2]
[334591240,1723287052710,-342.99674,0.00012539,2]
[334591241,1723287052719,-301.89188189,0.00012539,2]
[334591242,1723287052728,-164.039109,0.00012539,2]
[334591243,1723287052738,-458.13805,0.00012539,2]
[334591244,1723287052747,-458.13805,0.00012539,2]
[334591245,1723287052757,-1160.590552,0.00012539,2]
[334591246,1723287052767,-458.13805,0.00012539,2]
[334591247,1723287052777,-1160.590552,0.00012539,2]
[334591248,1723287052786,-458.13805,0.00012539,2]
[334591249,1723287052795,-1160.590552,0.00012539,2]